bitfinex-derivatives/quotes_ETHF0:USTF0_20241231
["timestamp","ask_amount","ask_price","bid_price","bid_amount"]
[1735679853657,3.50797,3337.4,3337.3,0.30018]
[1735679854049,3.2078,3337.4,3337.3,0.30018]
[1735679854550,3.50797,3337.4,3337.3,0.30018]
[1735679854753,3.2078,3337.4,3337.3,0.30018]
[1735679855763,0.87997,3337.5,3337.4,0.30017]
[1735679857760,0.5798,3337.5,3337.4,0.30017]
[1735679857962,2.31855016,3337.9,3337.5,0.75042]
[1735679858256,2.31855016,3337.9,3337.8,0.30014]
[1735679859155,0.30011,3338.1,3337.8,0.30014]
[1735679859351,0.30011,3338.1,3338.0,0.30012]
[1735679862165,3.2078,3338.2,3338.1,0.30011]
[1735679862773,1.4114,3338.3,3338.2,0.3001]
[1735679863365,1.1113,3338.3,3338.2,0.3001]
[1735679864173,1.41139,3338.3,3338.2,0.3001]
[1735679864668,2.31855016,3338.5,3337.8,1.82408076]
[1735679864869,3.46519513,3338.6,3338.4,1.82408076]
[1735679865070,0.22916205,3338.6,3338.5,4.58507]
[1735679865277,4.630074,3338.8,3338.7,0.30006]
[1735679866579,3.2078,3339.0,3338.9,0.30004]
[1735679866978,3.50783,3339.0,3338.9,0.30004]
[1735679867281,3.2078,3339.0,3338.9,0.30004]
[1735679867886,2.33759841,3339.4,3339.0,0.75008]
[1735679868083,2.33759841,3339.4,3339.3,0.3]
[1735679868984,0.86119,3339.5,3339.0,0.75008]
[1735679869177,0.86119,3339.5,3339.4,0.29999]
[1735679869370,0.5612,3339.5,3339.4,0.29999]
[1735679869574,0.86118,3339.5,3339.4,0.29999]
[1735679869880,0.5612,3339.5,3339.4,0.29999]
[1735679870285,0.3,3339.4,3339.3,0.29999]
[1735679870471,0.5612,3339.5,3339.3,0.29999]
[1735679870680,0.86119,3339.5,3339.4,0.29999]
[1735679871180,0.5612,3339.5,3338.9,4.4338]
[1735679871387,0.30002,3339.2,3339.1,0.30001]
[1735679871979,0.5482,3339.2,3339.1,0.30001]
[1735679872485,0.84821,3339.2,3339.1,0.30001]
[1735679872685,0.5482,3339.2,3339.1,0.30001]
[1735679872892,0.84821,3339.2,3339.1,0.30001]
[1735679873386,0.5482,3339.2,3339.1,0.30001]
[1735679874187,3.2078,3339.3,3339.2,0.30001]
[1735679876790,3.5078,3339.3,3339.2,0.30001]
[1735679877491,3.2078,3339.3,3339.2,0.30001]
[1735679878493,0.5612,3339.5,3338.9,1.9761]
[1735679878792,0.5612,3339.5,3338.9,5.1839]
[1735679878988,0.30001,3339.3,3339.2,0.3]
[1735679879879,0.5612,3339.5,3338.9,4.4338]
[1735679880093,0.5612,3339.5,3339.4,0.29999]
[1735679882685,0.30001,3339.3,3339.0,3.05008076]
[1735679882884,0.5612,3339.5,3339.4,0.29999]
[1735679883989,0.5735,3339.7,3339.6,0.29997]
[1735679884292,2.33759841,3340.3,3340.2,0.29992]
[1735679885893,0.5506,3340.4,3340.0,3.2078]
[1735679886192,0.5506,3340.4,3340.3,0.29991]
[1735679886496,0.5564,3340.7,3340.6,0.29988]
[1735679886886,0.5608,3340.9,3340.8,0.29987]
[1735679887586,0.5208,3341.2,3341.1,0.29984]
[1735679887986,0.5608,3341.3,3341.1,0.29984]
[1735679888194,0.5608,3341.3,3340.9,5.03188076]
[1735679888394,0.5608,3341.3,3341.2,0.29983]
[1735679889792,0.86062,3341.3,3341.1,0.29983]
[1735679889992,0.86062,3341.3,3339.7,6.53178652]
[1735679889993,0.5608,3341.3,3340.7,1.224]
[1735679890291,0.29984,3341.0,3340.8,0.29984]
[1735679890500,0.5532,3341.2,3340.7,1.224]
[1735679890797,0.5532,3341.2,3341.1,0.29983]
[1735679891698,5.03188076,3341.9,3340.9,5.03188076]
[1735679891898,1.0781,3341.8,3341.0,1.1078]
[1735679892097,1.0781,3341.8,3340.9,5.03188076]
[1735679892390,1.0781,3341.8,3341.6,0.29978]
[1735679892697,1.37787,3341.8,3341.7,0.29978]
[1735679892890,1.0781,3341.8,3341.0,1.1101]
[1735679893086,0.29981,3341.4,3340.9,1.82408076]
[1735679893292,1.0781,3341.8,3340.9,1.82408076]
[1735679893594,1.0781,3341.8,3341.7,0.29978]
[1735679893798,1.0781,3341.8,3341.6,0.29978]
[1735679893799,1.37787,3341.8,3341.6,0.29978]
[1735679894095,1.0781,3341.8,3341.7,0.29978]
[1735679894295,1.0781,3341.8,3341.1,0.74958]
[1735679894497,1.37787,3341.8,3341.6,0.29978]
[1735679894689,0.29979,3341.7,3341.2,0.29983]
[1735679894894,0.29979,3341.7,3341.1,0.74958]
[1735679894895,1.0781,3341.8,3341.5,0.2998]
[1735679895095,0.29979,3341.6,3341.5,0.2998]
[1735679895297,1.0781,3341.8,3341.2,0.29982]
[1735679895298,0.29982,3341.4,3341.2,0.29982]
[1735679895492,1.0781,3341.8,3341.1,0.29983]
[1735679895699,2.57364076,3341.3,3340.0,5.03188076]
[1735679895891,3.2078,3340.3,3339.6,0.5567]
[1735679896096,3.2078,3339.9,3339.4,7.75578652]
[1735679896292,0.29993,3340.1,3339.4,10.96358652]
[1735679896601,1.1082,3340.2,3340.1,0.29993]
[1735679896794,3.2078,3340.7,3339.8,3.95769]
[1735679897001,3.2078,3340.7,3340.4,0.2999]
[1735679897002,0.29989,3340.6,3340.4,0.2999]
[1735679897197,0.87239,3340.6,3340.4,0.2999]
[1735679897701,0.29989,3340.5,3340.4,0.2999]
[1735679897901,0.5725,3340.6,3339.8,3.95769]
[1735679898203,0.2999,3340.4,3340.3,0.29991]
[1735679898402,0.5725,3340.6,3340.5,0.29989]
[1735679898805,0.5725,3340.6,3339.9,1.27767]
[1735679899007,0.5725,3340.6,3339.9,0.5278]
[1735679899202,0.2999,3340.5,3340.4,0.29989]
[1735679899501,0.5725,3340.6,3339.4,1.82408076]
[1735679899701,3.2078,3339.5,3339.2,0.5769]
[1735679899897,3.2078,3339.6,3339.5,0.29998]
[1735679901003,10.03188076,3339.6,3338.6,0.23462068]
[1735679901202,3.2078,3338.7,3338.6,0.23462068]
[1735679901404,3.2078,3339.2,3338.6,0.23462068]
[1735679901604,0.30005,3338.9,3338.2,5.03188076]
[1735679901910,3.2078,3339.2,3338.2,5.03188076]
[1735679902211,0.30007,3338.7,3338.5,0.30008]
[1735679902406,3.2078,3338.7,3338.2,1.82408076]
[1735679902706,0.30011,3338.2,3338.1,0.00199993]
[1735679904215,3.2078,3338.3,3338.1,0.00199993]
[1735679904412,0.30011,3338.2,3338.1,0.00199993]
[1735679905712,3.2078,3338.3,3338.1,0.00199993]
[1735679905917,3.50791,3338.3,3338.1,0.30211993]
[1735679906216,3.50791,3338.3,3338.1,0.00199993]
[1735679906217,0.30011,3338.2,3338.1,0.00199993]
[1735679909013,3.50791,3338.3,3338.1,0.30211993]
[1735679909420,0.30011,3338.2,3338.1,0.30211993]
[1735679909614,3.5079,3338.3,3338.2,0.30011]
[1735679910122,3.2078,3338.3,3338.2,0.30011]
[1735679910320,3.5079,3338.3,3338.1,0.00199993]
[1735679910618,3.2078,3338.3,3338.1,0.00199993]
[1735679910817,0.30011,3338.2,3338.1,0.00199993]
[1735679911018,0.86561,3338.2,3338.1,0.00199993]
[1735679912318,0.86561,3338.2,3338.1,0.30211993]
[1735679913017,0.86561,3338.2,3338.1,0.00199993]
[1735679914121,0.86561,3338.2,3338.1,0.30211993]
[1735679914320,0.5655,3338.2,3338.1,0.30211993]
[1735679914910,0.86561,3338.2,3338.1,0.00199993]
[1735679915325,0.86561,3338.2,3338.1,0.30211993]
[1735679915620,0.5655,3338.2,3338.1,0.30211993]
[1735679916014,3.2078,3338.3,3338.1,0.00199993]
[1735679916723,3.50791,3338.3,3338.2,0.30011]
[1735679916915,3.50791,3338.3,3338.1,0.00199993]
[1735679916916,0.30011,3338.2,3338.1,0.00199993]
[1735679918021,0.30011,3338.2,3338.1,0.30211993]
[1735679918919,3.2078,3338.3,3338.2,0.30011]
[1735679919114,0.85918,3338.6,3338.5,0.30008]
[1735679920220,0.3001,3338.4,3338.3,0.3001]
[1735679920717,0.30009,3338.5,3338.4,0.30009]
[1735679921321,0.3001,3338.4,3338.3,0.3001]
[1735679921913,0.5591,3338.6,3338.1,0.00199993]
[1735679922113,3.50789,3338.5,3338.4,0.30009]
[1735679922926,3.50789,3338.5,3338.1,0.00199993]
[1735679922927,0.30011,3338.3,3338.2,0.3001]
[1735679924123,3.7625,3338.5,3338.1,0.00199993]
[1735679924330,0.30011,3338.2,3338.1,0.30210993]
[1735679925026,0.3001,3338.4,3338.3,0.3001]
[1735679925416,3.7625,3338.5,3338.3,0.3001]
[1735679925620,3.7625,3338.5,3338.1,0.00199993]
[1735679925621,3.2078,3338.5,3338.4,0.30009]
[1735679925820,0.5591,3338.6,3338.1,0.53129993]
[1735679926018,0.5732,3339.2,3338.4,1.82408076]
[1735679926230,0.30005,3339.0,3338.9,0.30004]
[1735679926929,0.5378,3339.2,3339.1,0.30003]
[1735679927125,0.83782,3339.2,3339.1,0.30003]
[1735679927630,0.5378,3339.2,3339.1,0.30003]
[1735679929927,3.2078,3339.3,3338.8,0.5403]
[1735679930227,3.2078,3339.3,3339.2,0.30002]
[1735679930925,3.50777,3339.9,3339.8,0.29997]
[1735679931336,3.2078,3339.9,3339.8,0.29997]
[1735679933237,3.2078,3339.9,3339.3,0.75004]
[1735679933535,0.29998,3339.8,3339.7,0.29997]
[1735679933728,3.2078,3339.9,3339.2,3.2078]
[1735679933930,0.30003,3339.1,3339.0,0.30003]
[1735679934126,5.03188076,3339.9,3338.8,0.5403]
[1735679934435,0.29999,3339.6,3339.5,0.29999]
[1735679934633,5.03188076,3339.9,3339.0,0.75011]
[1735679934634,3.2078,3339.9,3339.0,2.57419076]
[1735679934829,0.29998,3339.7,3339.6,0.29998]
[1735679936438,0.29999,3339.7,3339.6,0.29998]
[1735679937131,3.2078,3339.9,3339.0,2.57419076]
[1735679937339,0.29997,3339.8,3339.7,0.29997]
[1735679937537,3.2078,3339.9,3339.8,0.29997]
[1735679939039,3.50776,3339.9,3339.8,0.29997]
[1735679939538,3.2078,3339.9,3339.8,0.29997]
[1735679939927,3.2078,3339.9,3339.0,2.62602462]
[1735679940128,3.2078,3339.5,3338.8,0.5403]
[1735679940328,3.2078,3339.9,3339.8,0.29997]
[1735679940940,0.5263,3340.0,3339.9,0.29996]
[1735679941439,0.5263,3340.0,3339.1,1.235]
[1735679941635,0.30002,3339.3,3339.2,0.30001]
[1735679943529,1.1134,3339.4,3338.8,4.70770576]
[1735679943735,0.30003,3339.2,3339.1,0.30003]
[1735679945248,1.1134,3339.4,3338.6,4.49799]
[1735679945539,0.30002,3339.3,3339.2,0.30002]
[1735679945740,1.1134,3339.4,3338.6,4.49799]
[1735679946143,0.30003,3339.2,3339.1,0.30002]
[1735679946441,1.1134,3339.4,3338.6,4.49799]
[1735679946442,0.30002,3339.3,3339.2,0.30001]
[1735679947240,1.1134,3339.4,3339.3,0.30001]
[1735679948535,1.1134,3339.4,3339.0,0.75009]
[1735679948536,3.2078,3339.6,3339.1,1.82408076]
[1735679948739,2.33759841,3339.8,3339.7,0.29998]
[1735679948956,2.63756841,3339.8,3339.7,0.29998]
[1735679949533,0.29997,3339.8,3339.7,0.29998]
[1735679950534,0.3,3339.5,3339.4,0.29999]
[1735679950934,3.2078,3339.6,3339.1,1.239]
[1735679951342,3.50782,3339.2,3339.1,1.53902]
[1735679952945,3.50782,3339.2,3339.1,0.30002]
[1735679953841,3.2078,3339.2,3339.1,0.30002]
[1735679954149,3.50782,3339.2,3339.1,0.30002]
[1735679954351,0.30002,3339.2,3339.1,0.30002]
[1735679955546,0.30002,3339.3,3339.2,0.30001]
[1735679955743,0.5623,3339.5,3338.9,0.75013]
[1735679955944,0.30001,3339.4,3339.3,0.3]
[1735679957260,3.2078,3339.6,3339.0,0.7501]
[1735679957458,3.2078,3339.6,3339.5,0.3]
[1735679957662,3.50779,3339.6,3339.5,0.3]
[1735679958058,3.2078,3339.6,3339.5,0.3]
[1735679958553,3.2078,3339.6,3339.5,0.8638]
[1735679964062,0.29996,3340.0,3339.9,0.29996]
[1735679964967,2.63754841,3340.1,3340.0,0.29995]
[1735679965568,0.29995,3340.1,3340.0,0.29995]
[1735679966170,5.54539841,3340.2,3339.5,0.5638]
[1735679966369,0.29997,3339.9,3339.8,0.29996]
[1735679966867,0.29994,3340.1,3340.0,0.29994]
[1735679968064,5.54539841,3340.2,3340.0,1.82408076]
[1735679968271,5.54539841,3340.2,3340.1,3.50774]
[1735679968272,2.33759841,3340.2,3340.1,3.50774]
[1735679968564,2.65035249,3340.3,3340.2,0.29993]
[1735679969466,1.77955248,3340.3,3340.2,0.29993]
[1735679969671,4.2836,3341.1,3341.0,0.29986]
[1735679970066,0.29983,3341.4,3341.3,0.29983]
[1735679970275,7.84460142,3341.5,3340.9,1.82408076]
[1735679970579,4.63680142,3341.5,3341.4,0.29982]
[1735679971075,0.29979,3341.8,3341.7,0.29979]
[1735679971977,4.93658142,3341.9,3341.8,0.29979]
[1735679972364,4.93659142,3341.9,3341.8,0.29979]
[1735679972566,3.50757,3342.0,3341.9,0.29978]
[1735679972767,3.2078,3342.0,3341.9,0.29978]
[1735679974270,3.50757,3342.0,3341.9,0.29978]
[1735679975173,3.2078,3342.0,3341.3,0.23347094]
[1735679975380,3.2078,3341.7,3341.0,0.5218]
[1735679975677,1.82408076,3342.0,3340.8,4.70770576]
[1735679975678,0.29987,3340.9,3340.8,4.70770576]
[1735679976677,0.5486,3340.9,3340.4,0.29991]
[1735679976881,3.2078,3340.5,3340.1,1.238]
[1735679977084,0.29991,3340.4,3340.3,0.29992]
[1735679977279,0.29994,3340.2,3340.1,0.29994]
[1735679977481,0.29993,3340.3,3340.2,0.29993]
[1735679978087,0.29992,3340.4,3340.3,0.29992]
[1735679978977,3.2078,3340.5,3340.4,0.29991]
[1735679978978,3.50771,3340.5,3340.4,0.29991]
[1735679980879,0.29992,3340.4,3340.0,0.29995]
[1735679981076,0.29993,3340.3,3340.2,0.29993]
[1735679981385,3.2078,3340.5,3339.9,0.74991]
[1735679981585,3.50771,3340.5,3340.4,0.29991]
[1735679982078,3.2078,3340.5,3340.4,0.29991]
[1735679984180,0.5486,3340.9,3340.8,0.29988]
[1735679987681,0.5612,3341.0,3340.9,0.29987]
[1735679987884,3.2078,3341.2,3340.6,1.234]
[1735679988084,1.1229,3341.5,3340.8,0.74969]
[1735679988386,1.1229,3341.5,3340.9,0.74968]
[1735679988993,1.1229,3341.5,3341.4,0.29982]
[1735679988994,1.42272,3341.5,3341.4,0.29982]
[1735679989879,1.1229,3341.5,3340.6,1.98374]
[1735679990090,3.50765,3341.2,3341.1,0.29985]
[1735679990891,3.2078,3341.2,3340.2,4.68922877]
[1735679991189,0.29991,3340.5,3340.4,0.29991]
[1735679992585,1.6341,3340.7,3340.0,5.43910877]
[1735679992786,3.2078,3340.8,3340.7,0.29989]
[1735679992982,1.82408076,3341.4,3340.1,1.82408076]
[1735679992983,0.5343,3341.0,3340.9,0.29987]
[1735679995592,3.2078,3341.2,3341.1,0.29985]
[1735679996390,0.576,3341.4,3341.3,0.29983]
[1735679998892,0.87582,3341.4,3341.3,0.29983]
[1735679999198,0.576,3341.4,3341.3,0.29983]
[1735679999399,0.576,3341.4,3340.6,0.5231]
[1735679999600,0.29989,3340.8,3340.7,0.29988]
[1735679999902,3.2078,3340.8,3340.7,0.29988]
[1735680001196,0.29991,3340.6,3340.5,0.2999]
[1735680001393,0.29991,3340.6,3340.4,4.68922877]
[1735680001394,0.29991,3340.5,3340.4,4.98913877]
[1735680001689,0.29991,3340.5,3340.4,0.29991]
[1735680004202,0.2999,3340.6,3340.5,0.2999]
[1735680004796,1.0941,3340.7,3340.0,3.95766]
[1735680004999,0.29991,3340.5,3340.4,0.29991]
[1735680006899,1.0941,3340.7,3340.0,3.2078]
[1735680007100,3.2078,3340.2,3339.6,1.30066]
[1735680007297,0.29999,3339.7,3339.6,0.29998]
[1735680007501,0.29999,3339.6,3339.5,4.68922877]
[1735680007895,0.559,3339.7,3339.4,7.33384316]
[1735680007896,0.3,3339.5,3339.4,7.33384316]
[1735680008097,0.8481,3339.5,3339.4,7.33384316]
[1735680008697,0.5481,3339.5,3339.4,7.33384316]
[1735680008903,3.2078,3340.2,3340.0,0.29995]
[1735680010811,3.2078,3340.2,3340.1,0.29994]
[1735680011012,3.7737,3340.7,3340.6,0.2999]
[1735680011216,4.07359,3340.7,3340.6,0.2999]
[1735680011919,0.29991,3340.6,3340.5,0.2999]
[1735680012309,3.7737,3340.7,3340.4,0.2999]
[1735680012310,0.29991,3340.5,3340.4,0.2999]
[1735680012507,0.2999,3340.6,3340.5,0.2999]
[1735680012713,4.07359,3340.7,3340.6,0.2999]
[1735680012913,3.7737,3340.7,3339.8,1.32762]
[1735680013118,3.50773,3340.3,3340.2,0.29992]
[1735680013520,3.2078,3340.3,3340.2,0.29992]
[1735680017826,4.07359,3340.7,3340.6,0.2999]
[1735680018027,3.7737,3340.7,3340.6,0.2999]
[1735680018523,4.07359,3340.7,3340.6,0.2999]
[1735680018826,0.5581,3340.9,3340.3,3.2078]
[1735680019028,0.5581,3340.9,3340.8,0.29988]
[1735680022730,0.5581,3340.9,3340.4,4.70271516]
[1735680023034,3.2078,3340.7,3340.6,0.29988]
[1735680023529,3.5077,3340.7,3340.6,0.29988]
[1735680023729,3.5077,3340.7,3340.4,4.70271516]
[1735680023730,3.2078,3340.7,3340.4,4.70271516]
[1735680024028,1.1532,3340.6,3340.1,4.70271516]
[1735680024227,0.29993,3340.3,3340.2,0.29992]
[1735680026021,0.29994,3340.2,3340.1,0.29993]
[1735680026926,3.2078,3340.2,3339.7,4.70271516]
[1735680027125,0.29997,3339.8,3339.7,5.00268516]
[1735680027327,1.30297,3340.1,3339.9,0.29995]
[1735680027328,0.29996,3340.0,3339.9,0.29995]
[1735680027527,0.5531,3340.1,3340.0,0.29995]
[1735680028136,3.2078,3340.2,3339.7,5.45264516]
[1735680028326,3.2078,3340.2,3340.1,0.29994]
[1735680032933,3.50773,3340.2,3340.1,0.29994]
[1735680037435,3.2078,3340.2,3340.1,0.29994]
[1735680037830,3.50773,3340.2,3340.1,0.29994]
[1735680038235,3.2078,3340.2,3339.6,7.05589592]
[1735680038440,0.29997,3340.0,3339.9,0.29995]
[1735680038644,3.50774,3340.2,3340.1,0.29994]
[1735680039741,3.2078,3340.2,3340.1,0.29994]
[1735680040138,3.50789993,3340.3,3340.0,3.2078]
[1735680040442,3.50789993,3340.3,3340.2,2.12401076]
[1735680041041,0.5531,3340.5,3340.4,0.29991]
[1735680042238,0.85301,3340.5,3340.4,0.29991]
[1735680042438,0.5531,3340.5,3340.4,0.29991]
[1735680043147,0.5813,3340.6,3340.5,0.29991]
[1735680045143,3.2078,3340.7,3340.3,0.5754]
[1735680045335,3.2078,3340.7,3340.6,0.2999]
[1735680047040,3.50769,3340.7,3340.6,0.2999]
[1735680047342,3.2078,3340.7,3340.2,6.52679592]
[1735680047546,0.29992,3340.4,3340.3,0.29991]
[1735680047749,0.29992,3340.3,3340.2,4.70271516]
[1735680048052,4.08782,3340.3,3340.2,4.70271516]
[1735680048350,4.08782,3340.3,3340.2,0.29993]
[1735680048540,3.7879,3340.3,3340.2,0.29993]
[1735680048736,3.50789993,3340.7,3340.1,4.70271516]
[1735680048737,6.71569993,3340.7,3340.1,4.70271516]
[1735680048946,7.59568993,3340.7,3340.6,0.2999]
[1735680049146,7.29579993,3340.7,3340.6,0.2999]
[1735680049643,3.50789993,3340.7,3340.6,0.2999]
[1735680049950,3.48604318,3340.8,3340.7,0.29989]
[1735680050245,1.90662421,3341.0,3340.9,0.29987]
[1735680050438,5.82862126,3341.2,3340.9,0.29987]
[1735680050439,3.97576889,3341.2,3341.1,0.29985]
[1735680050646,3.90496889,3341.2,3341.1,0.29985]
[1735680050844,3.90496889,3341.2,3341.1,5.29985]
[1735680051046,0.39618447,3341.6,3341.1,5.0]
[1735680051343,1.1242,3342.2,3342.1,0.29976]
[1735680051550,1.42395,3342.2,3342.1,0.29976]
[1735680051743,1.1242,3342.2,3342.1,0.29976]
[1735680052140,0.5441,3342.2,3342.1,2.12384076]
[1735680052348,0.39618447,3342.6,3342.5,0.29973]
[1735680052743,0.29974,3342.4,3342.2,0.29975]
[1735680052944,0.29974,3342.3,3342.2,0.29975]
[1735680053241,4.3487,3342.7,3341.7,3.2078]
[1735680053242,4.64841,3342.7,3342.6,0.29972]
[1735680053442,4.3487,3342.7,3342.1,1.82408076]
[1735680053843,4.64841,3342.7,3342.6,0.29972]
[1735680054147,4.64841,3342.7,3342.5,0.29972]
[1735680054348,4.3487,3342.7,3342.5,0.29972]
[1735680054550,0.29972,3342.6,3342.4,0.29973]
[1735680054746,0.29975,3342.3,3342.2,0.29975]
[1735680055146,5.09798,3342.7,3342.2,0.29975]
[1735680055449,0.29973,3342.5,3342.4,0.29973]
[1735680055652,0.29972,3342.6,3342.5,0.29972]
[1735680055947,4.64841,3342.7,3342.6,0.29972]
[1735680056645,4.3487,3342.7,3342.6,0.29972]
[1735680057252,3.2078,3342.7,3342.6,0.29972]
[1735680059050,3.7586,3342.7,3342.6,0.29972]
[1735680059447,0.29972,3342.6,3342.5,0.29972]
[1735680059642,0.29972,3342.6,3342.3,1.224]
[1735680059643,0.29973,3342.5,3342.4,0.29973]
[1735680060052,0.29973,3342.4,3342.2,4.70488594]
[1735680060249,3.50754,3342.3,3342.2,3.82348594]
[1735680060455,0.29977,3342.0,3341.9,0.29978]
[1735680060757,0.2998,3341.7,3341.6,2.94208594]
[1735680060956,0.2998,3341.7,3341.6,3.24189594]
[1735680061348,3.2078,3342.2,3341.6,2.94208594]
[1735680061650,3.2078,3342.2,3342.0,0.29977]
[1735680061651,0.29977,3342.1,3342.0,0.29977]
[1735680062253,0.29978,3342.0,3341.9,0.29978]
[1735680062455,3.2078,3342.2,3341.6,0.2998]
[1735680062655,0.2998,3341.7,3341.6,0.2998]
[1735680062848,3.50759,3341.8,3341.7,0.2998]
[1735680063249,3.2078,3341.8,3341.7,0.2998]
[1735680064152,3.2078,3341.8,3341.5,3.04808076]
[1735680064153,0.2998,3341.7,3341.6,0.2998]
[1735680064350,0.5435,3341.7,3341.2,1.82408076]
[1735680064652,3.2078,3341.4,3340.8,7.05732891]
[1735680064845,3.50767,3340.9,3340.8,7.05732891]
[1735680065048,3.2078,3340.9,3340.8,0.29988]
[1735680065447,0.5865,3341.3,3341.2,0.29984]
[1735680066844,0.5588,3341.6,3341.2,1.82408076]
[1735680067048,0.5588,3341.6,3341.5,0.29982]
[1735680067247,0.5588,3341.6,3341.5,2.12390076]
[1735680070859,0.5435,3341.7,3341.5,1.82408076]
[1735680071153,0.5435,3341.7,3341.6,0.29981]
[1735680071858,1.117,3341.7,3341.6,0.29981]
[1735680073157,1.4168,3341.7,3341.6,0.29981]
[1735680073560,1.117,3341.7,3341.2,1.82408076]
[1735680073754,0.29981,3341.6,3341.5,0.29981]
[1735680074449,1.117,3341.7,3341.2,1.82408076]
[1735680074650,3.2078,3341.4,3340.9,1.82408076]
[1735680074862,0.29983,3341.3,3341.0,0.29986]
[1735680075064,0.29986,3341.1,3341.0,0.29986]
[1735680075563,0.29986,3341.1,3340.8,1.227]
[1735680075564,0.5644,3341.1,3340.3,12.08920967]
[1735680075757,0.29988,3340.8,3340.7,0.29988]
[1735680076260,3.2078,3340.9,3340.3,12.08920967]
[1735680076462,0.29989,3340.7,3340.6,0.29989]
[1735680076659,0.29988,3340.8,3340.7,0.29988]
[1735680077362,0.29988,3340.8,3340.3,5.03188076]
[1735680077363,0.29989,3340.7,3340.6,0.29989]
[1735680077551,0.29988,3340.8,3340.7,0.29988]
[1735680078363,3.50767,3340.9,3340.8,0.29988]
[1735680079266,0.29988,3340.8,3340.7,0.29988]
[1735680079460,0.29988,3340.8,3340.0,0.29995]
[1735680079461,0.29995,3340.1,3340.0,0.29995]
[1735680079761,3.50774,3340.2,3340.1,0.29994]
[1735680079962,3.2078,3340.2,3339.7,1.82408076]
[1735680080159,0.29996,3339.9,3339.6,9.40977188]
[1735680080557,1.1203,3340.1,3339.6,9.40977188]
[1735680080855,1.1203,3340.1,3340.0,0.29995]
[1735680080856,4.62805,3340.1,3340.0,0.29995]
[1735680081268,0.29996,3340.0,3339.9,0.29995]
[1735680082865,0.29997,3339.9,3339.8,0.29996]
[1735680083268,0.29996,3339.9,3339.8,0.29996]
[1735680083587,0.29996,3340.0,3339.9,0.29995]
[1735680083974,3.7913,3340.1,3340.0,0.29995]
[1735680084654,3.2078,3340.1,3340.0,0.29995]
[1735680085957,3.50774,3340.1,3340.0,0.29995]
[1735680086466,3.50774,3340.1,3339.7,1.82408076]
[1735680086467,3.2078,3340.1,3339.7,1.82408076]
[1735680086664,0.29997,3339.9,3339.8,0.29996]
[1735680086967,1.43006,3340.0,3339.9,0.29996]
[1735680087766,1.1301,3340.0,3339.9,0.29996]
[1735680088468,1.1301,3340.0,3339.5,1.228]
[1735680088668,0.29997,3339.9,3339.8,0.29996]
[1735680090467,0.29998,3339.7,3339.6,0.29998]
[1735680090670,1.1301,3340.0,3339.4,3.2078]
[1735680091065,1.1301,3340.0,3339.8,0.29996]
[1735680091066,0.29996,3339.9,3339.8,0.29996]
[1735680093064,0.3,3339.5,3339.4,3.5078]
[1735680094365,0.3,3339.5,3339.4,0.3]
[1735680094561,0.3,3339.5,3339.1,1.82408076]
[1735680094767,0.529,3339.5,3339.1,1.82408076]
[1735680094969,0.30001,3339.4,3339.3,0.30001]
[1735680095169,0.30001,3339.4,3339.2,0.30002]
[1735680095365,0.529,3339.5,3338.8,2.07071998]
[1735680095570,3.2078,3339.2,3338.6,7.05732891]
[1735680095874,0.30005,3338.9,3338.7,0.30007]
[1735680096468,3.2078,3339.2,3338.5,4.09978076]
[1735680096670,0.30004,3339.0,3338.9,0.30005]
[1735680097372,0.30005,3338.9,3338.8,0.30005]
[1735680097682,0.30005,3338.9,3338.8,2.12413076]
[1735680098681,0.30005,3339.0,3338.9,0.30005]
[1735680100379,3.2078,3339.2,3338.8,1.82408076]
[1735680100675,3.50782,3339.2,3339.1,2.12411076]
[1735680100885,3.2078,3339.2,3339.1,2.12411076]
[1735680101080,5.27161429,3341.0,3339.5,0.3]
[1735680101081,3.2078,3339.6,3339.5,0.3]
[1735680101275,1.0314,3339.9,3339.8,0.29997]
[1735680101276,1.33137,3339.9,3339.8,0.29997]
[1735680101886,0.29999,3339.7,3339.6,0.29998]
[1735680102481,0.29999,3339.6,3339.5,1.82408076]
[1735680102983,0.29998,3339.7,3339.5,1.82408076]
[1735680103178,0.29997,3339.8,3339.7,0.29997]
[1735680104081,0.29998,3339.7,3339.6,0.29998]
[1735680104878,1.0314,3339.9,3339.5,1.82408076]
[1735680104879,0.29999,3339.6,3339.5,1.82408076]
[1735680105185,0.29999,3339.6,3339.5,2.12408076]
[1735680105384,0.29998,3339.7,3339.6,0.29998]
[1735680105689,1.0314,3339.9,3339.5,1.82408076]
[1735680105886,0.29996,3340.0,3339.9,0.29996]
[1735680106589,3.2078,3340.1,3339.9,1.82408076]
[1735680106779,3.2078,3340.1,3340.0,0.29995]
[1735680106983,3.50774,3340.1,3340.0,0.29995]
[1735680107686,3.2078,3340.1,3340.0,0.29995]
[1735680107888,1.0662,3340.3,3340.1,0.29994]
[1735680107889,0.29994,3340.2,3340.1,0.29994]
[1735680108080,0.29992,3340.4,3340.2,0.29993]
[1735680108281,0.29989,3340.7,3340.6,0.29989]
[1735680108685,0.5551,3340.8,3340.3,1.82408076]
[1735680108886,0.2999,3340.6,3340.5,0.2999]
[1735680109087,0.5551,3340.8,3340.3,1.82408076]
[1735680109285,0.5551,3340.8,3340.4,0.29991]
[1735680109286,0.29991,3340.5,3340.4,0.29991]
[1735680111005,0.29994,3340.1,3340.0,1.82408076]
[1735680111286,0.29996,3339.9,3339.8,7.05732891]
[1735680112592,0.29997,3339.8,3339.7,1.82408076]
[1735680112796,0.29997,3339.8,3339.1,9.18143967]
[1735680112797,0.30002,3339.2,3339.1,9.18143967]
[1735680113095,3.2078,3339.6,3339.1,8.88140967]